[Event "FRA-ch Teams Top 16-Haute 2022"]
[Site "Chartres"]
[Date "2022.06.17"]
[Round "9.3"]
[White "Moussard, Jules"]
[Black "Demuth, Adrien"]
[Result "1-0"]
[ECO "B40"]
[WhiteElo "2651"]
[BlackElo "2493"]
[Annotator "TA"]
[PlyCount "121"]
[EventDate "2022.06.16"]
[EventType "team-tourn"]
[EventCountry "FRA"]
[SourceTitle "playchess.com"]
[Source "ChessBase"]
[SourceQuality "1"]
[TimeControl "40/5400+30:1800+30"]

{[%evp 9,121,6,14,11,5,0,0,0,0,0,0,0,-4,-8,30,0,56,54,61,61,59,58,60,61,52,59,52,37,70,59,60,60,62,65,78,72,61,56,64,56,60,33,62,63,68,71,92,58,60,68,63,52,72,40,43,42,44,52,50,45,40,26,35,45,37,20,33,33,146,128,139,146,404,359,394,265,265,265,570,558,531,508,579,564,648,592,556,0,214,0,483,471,431,364,4694,3600,2518,2673,6589,6427,5889,5889,5628,5393,1444,4333,4586,3295,6516,6248,29980,29981,29982,29983]} 1. e4 {[%emt 0:00:47]} c5 {[%emt 0:00:09]} 2. Nf3 {[%emt 0:00:12]} e6 {[%emt 0:00:05]} 3. b3 {[%emt 0:00:28]} Nc6 {[%emt 0:00:38]} 4. Bb2 {[%emt 0:00:53]} a6 {[%emt 0:00:17]} 5. c4 {[%emt 0:00:19]} Qc7 {[%emt 0:00:29]} 6. g3 {[%emt 0:00:27] B40: Sicilian: 2...e6, Unusual lines.} Nf6 {[%emt 0:00:59]} 7. e5 {[%emt 0:00:09]} Ng4 {[%emt 0:00:09][%cal Rg4e5]} 8. Bg2 $5 {[%emt 0:00:17][%mdl 4] [#] The position is equal. An interesting side line.} Ngxe5 $146 {[%emt 0:08:09]} ({Predecessor:} 8... Be7 9. O-O O-O 10. Re1 f6 11. exf6 Bxf6 12. Bxf6 Nxf6 13. d4 cxd4 14. Nxd4 e5 {1-0 (75) Antipov,M (2609)-Tsolakidou,S (2379) Chess.com INT 2021}) 9. Nxe5 {[%emt 0:01:06]} Nxe5 {[%emt 0:00:05]} 10. O-O {[%emt 0:00:12]} Nc6 {[%emt 0:03:30]} 11. Re1 {[%emt 0:00:38]} Nd4 {[%emt 0:10:05]} 12. Nc3 {[%emt 0:01:53]} Be7 {[%emt 0:00:37]} (12... g6 $1 $11) 13. Qg4 $1 $14 {[%emt 0:00:14]} O-O {[%emt 0:12:43]} 14. Nd5 {[%emt 0:00:10][%mdl 64] [#] Prevents Bf6. Pin, Double Attack} Qd8 {[%emt 0:00:33]} 15. Nxe7+ {[%emt 0:00:15]} Qxe7 {[%emt 0:00:05]} 16. Bxd4 {[%emt 0:04:42]} cxd4 {[%emt 0:00:15]} 17. Qxd4 {[%emt 0:00:08]} d6 {[%emt 0:00:33]} 18. Re3 {[%emt 0:05:17][%cal Be1e3,Be3d3,Bd3a3][%mdl 32]} Qf6 {[%emt 0:15:47]} 19. Rd3 {[%emt 0:31:32] And now Qxf6 would win. White is much more active. The black rooks are badly placed.} Rd8 {[%emt 0:00:05]} 20. Qxf6 {[%emt 0:05:53]} gxf6 {[%emt 0:00:05]} 21. c5 {[%emt 0:01:27]} d5 {[%emt 0:00:39]} 22. b4 {[%emt 0:00:06]} Bd7 {[%emt 0:11:48]} 23. Ra3 {[%emt 0:03:54]} Bb5 {[%emt 0:06:01]} 24. Rc1 {[%emt 0:12:43]} e5 {[%emt 0:04:49]} 25. f4 {[%emt 0:05:18]} Rac8 {[%emt 0:03:46]} 26. Bf1 {[%emt 0:03:12]} Bxf1 {[%emt 0:05:25]} 27. Kxf1 {[%emt 0:01:16][%mdl 4096] Endgame KRR-KRR} d4 {[%emt 0:03:53]} 28. Re1 {[%emt 0:00:33]} Re8 {[%emt 0:05:57]} 29. Re4 {[%emt 0:00:24]} Kg7 {[%emt 0:01:44]} 30. Ke2 {[%emt 0:00:58]} Kg6 {[%emt 0:01:00]} 31. g4 {[%emt 0:00:26]} f5 {[%emt 0:03:28]} 32. gxf5+ {[%emt 0:03:48]} Kxf5 {[%emt 0:00:01]} 33. Rxe5+ {[%emt 0:00:03]} Kxf4 {[%emt 0:01:19]} 34. Rxe8 {[%emt 0:00:04]} Rxe8+ {[%emt 0:00:01] KR-KR} 35. Kd3 {[%emt 0:00:33]} f5 $1 {[%emt 0:01:10]} 36. c6 {[%emt 0:00:28]} bxc6 {[%emt 0:00:02]} 37. Rxa6 {[%emt 0:00:04]} Rc8 {[%emt 0:01:06]} 38. Kxd4 {[%emt 0:04:02]} Kf3 {[%emt 0:00:20]} (38... h5 $1 $14) 39. Ke5 $16 {[%emt 0:00:08]} f4 {[%emt 0:00:42]} 40. Ra3+ {[%emt 0:00:06]} Ke2 $2 {[%emt 0:01:28][%mdl 8192]} (40... Kg4 $16 {is a better defense.}) 41. Kxf4 $18 {[%emt 0:30:04]} Kxd2 {[%emt 0:30:09]} 42. Ra5 {[%emt 0:00:50] Hoping for Ke5.} Kc3 {[%emt 0:00:00]} 43. a3 {[%emt 0:00:00]} Kb3 $2 {[%emt 0:00:00]} (43... Rd8 44. Ra6 Rd6) 44. h4 {[%emt 0:00:00][%cal Bh2h4,Bh4h5][%mdl 32]} Rd8 {[%emt 0:00:00]} 45. h5 {[%emt 0:00:00]} Rd6 {[%emt 0:00:00]} 46. Ke5 {[%emt 0:00:00]} Rh6 {[%emt 0:00:00]} 47. Kd4 {[%emt 0:00:00]} Rd6+ {[%emt 0:00:00]} 48. Ke5 $2 {[%emt 0:00:00]} (48. Kc5 Rh6 49. Kb6) 48... Rh6 {[%emt 0:00:00]} 49. Kf4 $2 {[%emt 0:00:00]} (49. Ke4 $18) 49... Re6 $2 {[%emt 0:00:00][%mdl 8192]} (49... Rd6 $1 $11 {and Black has nothing to worry.}) 50. Kg5 {[%emt 0:00:00]} Rd6 {[%emt 0:00:00]} 51. Ra7 {[%emt 0:00:00]} Kb2 $2 {[%emt 0:00:00]} (51... Rd3 52. Kh6 (52. Rxh7 Rd5+ 53. Kg6 Rd6+ 54. Kg5 Rd5+ 55. Kh6 Rd6+ 56. Kg5 Rd5+ $16) 52... Rd5) 52. h6 {[%emt 0:00:00]} Rg6+ {[%emt 0:00:00]} 53. Kh5 {[%emt 0:00:00]} Rg1 {[%emt 0:00:00]} 54. Rxh7 {[%emt 0:00:00]} Rh1+ {[%emt 0:00:00]} 55. Kg6 {[%emt 0:00:00] [#] Threatens to win with Ra7.} Rg1+ {[%emt 0:00:00]} 56. Kf6 {[%emt 0:00:00]} Rf1+ {[%emt 0:00:00]} 57. Ke6 {[%emt 0:00:00]} (57. Ke5 $142 Kxa3 58. Rh8) 57... Rg1 {[%emt 0:00:00]} 58. a4 {[%emt 0:00:00][%cal Ba3a4,Ba4a5,Ba5a6][%mdl 32] aiming for a5.} Kb3 {[%emt 0:00:00]} 59. a5 {[%emt 0:00:00]} Kxb4 {[%emt 0:00:09]} 60. a6 {[%emt 0:00:00]} (60. Rb7+ Kxa5 61. Rh7 Rh1 $11) 60... Re1+ {[%emt 0:01:19]} 61. Kd6 {[%emt 0:00:00] Weighted Error Value: White=0.16 (very precise) /Black=0.57} 1-0

[Event "FRA-ch Teams Top 16-Haute 2022"]
[Site "Chartres"]
[Date "2022.06.17"]
[Round "9.4"]
[White "Nanu, Costica-Ciprian"]
[Black "Alekseenko, Kirill"]
[Result "1/2-1/2"]
[ECO "E10"]
[WhiteElo "2520"]
[BlackElo "2698"]
[Annotator "TA"]
[PlyCount "72"]
[EventDate "2022.06.16"]
[EventType "team-tourn"]
[EventCountry "FRA"]
[SourceTitle "playchess.com"]
[Source "ChessBase"]
[SourceQuality "1"]
[TimeControl "40/5400+30:1800+30"]

{[%evp 9,72,16,14,18,24,20,18,14,22,14,13,16,0,0,0,0,0,-72,0,-58,-47,-55,-56,-58,-58,-58,-52,-72,-57,-60,-66,-89,-41,-31,-35,-45,-44,-91,-100,-91,-21,-32,-37,-41,0,0,0,0,38,33,42,35,71,12,14,9,10,0,0,0,0,0,0,0,0]} 1. Nf3 {[%emt 0:00:04]} Nf6 {[%emt 0:00:59]} 2. d4 {[%emt 0:00:22]} h6 {[%emt 0:01:18]} 3. c4 {[%emt 0:00:53]} e6 {[%emt 0:00:12]} 4. g3 {[%emt 0:01:55]} Bb4+ {[%emt 0:01:04]} 5. Bd2 {[%emt 0:04:27]} Be7 {[%emt 0:00:07]} 6. Bg2 {[%emt 0:01:19] E10: Blumenfeld Gambit.} d5 {[%emt 0:00:24]} 7. O-O {[%emt 0:00:20]} O-O {[%emt 0:00:28]} 8. Qc2 {[%emt 0:02:22]} Nbd7 {[%emt 0:00:37]} 9. Bf4 {[%emt 0:00:56]} c6 {[%emt 0:01:32]} 10. b3 {[%emt 0:00:48]} (10. Nbd2 {looks sharper.} g5 11. Be5 Ng4 12. Rfd1) 10... b6 {[%emt 0:04:20][%cal Bb7b6,Bb6b5,Bb5b4][%mdl 32] [#]} 11. a4 $146 {[%emt 0:04:19][%cal Ba2a4,Ba4a5][%mdl 32]} ({Predecessor:} 11. Rd1 Ba6 12. Ne5 Nxe5 13. dxe5 Nd7 14. cxd5 cxd5 15. e4 Rc8 16. Qd2 g5 17. Be3 Nxe5 18. exd5 exd5 {0-1 (62) Nguyen,A (2454)-Fedoseev,V (2707) Abu Dhabi 2018}) 11... Ba6 {[%emt 0:09:04]} 12. a5 {[%emt 0:12:58]} b5 {[%emt 0:03:23][%cal Rb5c4]} 13. Nbd2 {[%emt 0:00:43] [#]} (13. c5 $1 $11 {remains equal.}) 13... Nh5 {[%emt 0:08:06]} (13... bxc4 $1 $17 14. bxc4 Rc8) 14. cxd5 {[%emt 0:03:52]} (14. c5 $11) 14... Nxf4 $15 {[%emt 0:05:30]} 15. gxf4 {[%emt 0:00:11] aiming for dxe6.} cxd5 {[%emt 0:00:43]} 16. Qc6 {[%emt 0:00:10]} Qc8 {[%emt 0:04:14]} 17. Rfc1 {[%emt 0:00:12][%cal Of4f5]} b4 {[%emt 0:15:42]} 18. e4 {[%emt 0:21:50]} Qxc6 {[%emt 0:01:01]} 19. Rxc6 {[%emt 0:00:05]} Bb5 {[%emt 0:00:03]} 20. exd5 {[%emt 0:00:18]} Bxc6 {[%emt 0:02:16]} (20... Nf6 $17 21. f5 Nxd5 22. fxe6 Bxc6 23. exf7+ Rxf7) 21. dxc6 {[%emt 0:00:05]} Nf6 {[%emt 0:00:04]} 22. f5 {[%emt 0:07:58]} exf5 {[%emt 0:02:45]} 23. Rc1 {[%emt 0:04:56]} (23. Rd1 $15 {deserves consideration.}) 23... Rac8 $17 {[%emt 0:04:27]} 24. Ne5 {[%emt 0:01:06]} Rc7 {[%emt 0:07:21]} (24... Rfd8 $17 25. Rc4 Bd6) 25. Ndc4 $11 {[%emt 0:03:33]} Rd8 {[%emt 0:05:44]} 26. Rd1 {[%emt 0:01:11]} Nd5 {[%emt 0:08:05]} 27. Bxd5 {[%emt 0:00:27]} Rxd5 {[%emt 0:00:03]} 28. Ne3 $1 {[%emt 0:00:07][%csl LRd5,LRf5]} Rxe5 {[%emt 0:02:26]} 29. dxe5 {[%emt 0:00:24] And now Nd5 would win.} Rxc6 {[%emt 0:00:03]} 30. Nxf5 {[%emt 0:00:34][%mdl 4096] Endgame KRB-KRN} Bc5 {[%emt 0:02:22] [#]} 31. Rd5 {[%emt 0:03:39] White is more active.} (31. Kg2 $1 $16) 31... h5 $1 {[%emt 0:02:03] The position is equal.} 32. Kf1 {[%emt 0:01:13]} g6 {[%emt 0:00:48]} 33. Nd6 {[%emt 0:02:55]} Kf8 {[%emt 0:01:18]} 34. Ne4 {[%emt 0:01:20]} Be7 {[%emt 0:00:12]} 35. Rb5 {[%emt 0:01:25]} Ke8 {[%emt 0:02:37]} 36. Nd6+ {[%emt 0:04:10]} Bxd6 {[%emt 0:00:58] Weighted Error Value: White=0.14 (very precise) /Black=0.12 (very precise)} 1/2-1/2

[Event "FRA-ch Teams Top 16-Haute 2022"]
[Site "Chartres"]
[Date "2022.06.17"]
[Round "9.5"]
[White "Degraeve, Jean-Marc"]
[Black "Wirig, Anthony"]
[Result "1/2-1/2"]
[ECO "B40"]
[WhiteElo "2520"]
[BlackElo "2520"]
[Annotator "TA"]
[PlyCount "59"]
[EventDate "2022.06.16"]
[EventType "team-tourn"]
[EventCountry "FRA"]
[SourceTitle "playchess.com"]
[Source "ChessBase"]
[SourceQuality "1"]
[TimeControl "40/5400+30:1800+30"]

{[%evp 9,59,6,2,4,-2,8,-2,-4,-8,0,9,0,0,-15,-7,-11,-10,-20,-27,-36,-21,-62,-48,-45,-64,-52,-31,-104,-103,-84,-41,-227,-95,-162,-64,-57,-48,-64,-54,-67,-52,-49,-49,-55,-42,-75,0,-58,0,-66,0,-57]} 1. e4 {[%emt 0:00:05]} c5 {[%emt 0:00:16]} 2. Nf3 {[%emt 0:00:18]} e6 {[%emt 0:00:18]} 3. c3 {[%emt 0:00:31]} d5 {[%emt 0:00:13]} 4. e5 {[%emt 0:00:48]} d4 {[%emt 0:00:15]} 5. Bd3 {[%emt 0:00:35]} Bd7 {[%emt 0:00:18]} 6. Be4 {[%emt 0:04:31] B40: Sicilian: 2...e6, Unusual lines.} Bc6 {[%emt 0:00:29]} 7. d3 {[%emt 0:00:12]} Ne7 {[%emt 0:00:36]} 8. O-O {[%emt 0:05:05]} Bxe4 {[%emt 0:00:19]} 9. dxe4 {[%emt 0:00:02]} Nec6 {[%emt 0:00:10] [#]} 10. cxd4 $146 {[%emt 0:02:10]} ({Predecessor:} 10. Qb3 Qc7 11. Na3 a6 12. cxd4 Nxd4 13. Nxd4 cxd4 14. Bf4 Bxa3 15. Qxa3 Qe7 16. Qg3 {1-0 (26) Degraeve,J (2558)-Karr,J (2388) France 2009}) 10... Nxd4 {[%emt 0:02:08]} 11. Nxd4 {[%emt 0:00:38]} cxd4 {[%emt 0:02:45]} 12. Nd2 {[%emt 0:07:19]} Nc6 {[%emt 0:03:34]} 13. Nb3 {[%emt 0:00:42]} Qb6 {[%emt 0:39:54]} 14. Bf4 {[%emt 0:03:33]} Be7 {[%emt 0:00:51]} 15. Qe2 {[%emt 0:07:36]} g5 {[%emt 0:04:10]} 16. Bg3 {[%emt 0:00:46]} h5 {[%emt 0:00:04] [#] And now ...h4 would win.} 17. h3 {[%emt 0:00:24]} O-O-O {[%emt 0:05:58]} (17... g4 $5) 18. Rfd1 {[%emt 0:13:19]} (18. Qf3 $15) 18... Kb8 $17 {[%emt 0:04:15]} 19. Nc1 {[%emt 0:05:49]} g4 {[%emt 0:01:56]} 20. hxg4 $2 {[%emt 0:03:32]} (20. Kh1 $15) 20... Rdg8 {[%emt 0:02:51]} (20... hxg4 $19 {and Black stays clearly on top.} 21. Nd3 Rh5) 21. Nd3 {[%emt 0:04:11]} ({Wrong is} 21. gxh5 $2 {[#]} Rxg3 $1 {[%mdl 512]} 22. Rd3 (22. fxg3 $2 {perishes.} d3+ 23. Qf2 Bc5 $19) 22... Rg5 $19) (21. g5 $17) 21... Rxg4 {[%emt 0:00:32]} (21... hxg4 $19 {Hoping for ...Rh7.} 22. Qc2 Rc8) 22. Qf3 {[%emt 0:01:32]} Rg7 {[%emt 0:07:41]} 23. a3 {[%emt 0:05:43]} h4 {[%emt 0:05:30]} 24. Bh2 {[%emt 0:00:21]} Rhg8 {[%emt 0:02:17]} 25. Kh1 $1 {[%emt 0:00:24]} Qb3 {[%emt 0:01:15]} 26. Rg1 {[%emt 0:06:32]} Rh7 {[%emt 0:03:57]} 27. Qh3 {[%emt 0:02:02]} Rhg7 {[%emt 0:03:33]} 28. Qf3 $1 {[%emt 0:00:44]} Rh7 {[%emt 0:00:05]} 29. Qh3 {[%emt 0:06:44]} Rhg7 {[%emt 0:00:29]} 30. Qf3 $1 {[%emt 0:19:22] Weighted Error Value: White=0.23 (precise) /Black=0.20 (precise)} 1/2-1/2

[Event "FRA-ch Teams Top 16-Haute 2022"]
[Site "Chartres"]
[Date "2022.06.17"]
[Round "9.6"]
[White "Milliet, Sophie"]
[Black "Gozzoli, Yannick"]
[Result "1/2-1/2"]
[ECO "B90"]
[WhiteElo "2410"]
[BlackElo "2591"]
[Annotator "TA"]
[PlyCount "79"]
[EventDate "2022.06.16"]
[EventType "team-tourn"]
[EventCountry "FRA"]
[SourceTitle "playchess.com"]
[Source "ChessBase"]
[SourceQuality "1"]
[TimeControl "40/5400+30:1800+30"]

{[%evp 31,72,45,36,35,33,38,49,49,41,41,40,36,43,36,43,38,31,49,46,42,122,42,34,29,27,20,31,0,3,0,9,0,0,0,0,0,0,0,0,0,0,0,0]} 1. e4 {[%emt 0:00:26]} c5 {[%emt 0:00:17]} 2. Nf3 {[%emt 0:00:21]} d6 {[%emt 0:00:13]} 3. d4 {[%emt 0:05:27]} cxd4 {[%emt 0:00:49]} 4. Nxd4 {[%emt 0:00:03]} Nf6 {[%emt 0:00:14]} 5. Nc3 {[%emt 0:00:04]} a6 {[%emt 0:00:11]} 6. Be3 {[%emt 0:05:30]} Ng4 {[%emt 0:02:21]} 7. Bc1 {[%emt 0:00:51]} Nf6 {[%emt 0:00:40]} 8. Be3 {[%emt 0:00:07]} e5 {[%emt 0:00:38]} 9. Nb3 {[%emt 0:00:21]} Be6 {[%emt 0:01:27]} 10. f3 {[%emt 0:00:24]} Be7 {[%emt 0:01:33]} 11. Qd2 {[%emt 0:01:31]} O-O {[%emt 0:01:21]} 12. O-O-O {[%emt 0:00:38]} Nbd7 {[%emt 0:02:02]} 13. g4 {[%emt 0:01:00][%cal Bg2g4,Bg4g5][%mdl 32]} b5 {[%emt 0:03:16]} 14. g5 {[%emt 0:03:11]} b4 {[%emt 0:01:16]} 15. Ne2 {[%emt 0:00:43]} Ne8 {[%emt 0:00:17]} 16. f4 {[%emt 0:01:01]} a5 {[%emt 0:05:27] [#] White must now prevent ...a4.} 17. f5 {[%emt 0:01:07] B90: Sicilian Najdorf: Unusual White 6th moves, 6 Be3 Ng4 and 6 Be3 e5.} a4 {[%emt 0:00:27]} 18. fxe6 {[%emt 0:00:23]} axb3 {[%emt 0:00:28]} 19. cxb3 {[%emt 0:01:06] White is slightly better.} ({Don't blunder} 19. exd7 $2 bxa2 20. Qd5 a1=Q+ $19) 19... fxe6 {[%emt 0:00:21]} 20. Bh3 {[%emt 0:02:52]} Rxa2 {[%emt 0:14:14] [#] Threatens to win with ...Nc7.} 21. Bxe6+ {[%emt 0:01:20][%cal Bh3e6,Be6c4,Bc4f1][%mdl 32]} Kh8 {[%emt 0:01:24]} 22. Ng3 {[%emt 0:14:53] Active counter play!} Nc7 {[%emt 0:09:12]} 23. Bc4 {[%emt 0:01:20] A strong pair of Bishops.} Qa8 {[%emt 0:01:46]} 24. Rhf1 {[%emt 0:09:44]} Rxf1 {[%emt 0:09:56]} 25. Rxf1 {[%emt 0:00:06] Rf7 is the strong threat.} Ra1+ {[%emt 0:00:28]} 26. Kc2 {[%emt 0:00:04]} Rxf1 {[%emt 0:00:09]} 27. Bxf1 {[%emt 0:00:08]} d5 {[%emt 0:00:20]} 28. exd5 {[%emt 0:04:54]} Nxd5 {[%emt 0:00:30]} 29. Bf2 {[%emt 0:00:37]} Qc6+ {[%emt 0:02:49] The position is equal.} 30. Kb1 {[%emt 0:01:17]} Nf4 {[%emt 0:00:51] Inhibits Bg2.} 31. h4 {[%emt 0:01:15]} h6 {[%emt 0:05:43]} 32. gxh6 {[%emt 0:02:11]} gxh6 {[%emt 0:00:44]} 33. Ka2 {[%emt 0:07:58]} Qa8+ {[%emt 0:06:11]} 34. Kb1 {[%emt 0:00:06]} Qc6 {[%emt 0:00:43]} 35. Ka2 {[%emt 0:01:47]} Qa8+ {[%emt 0:01:06]} 36. Kb1 {[%emt 0:00:05]} Qc6 {[%emt 0:00:06] [#]  Weighted Error Value: White=0.03 (flawless) /Black=0.00 (flawless)} {Predecessor:} 37. h5 $146 Nf6 38. Qe3 Bd6 39. Qa7 Ne4 40. Nxe4 {½-½ (34) Bokar,J (2582)-Siefring,C (2499) ICCF email 2013} 1/2-1/2

[Event "FRA-ch Teams Top 16-Haute 2022"]
[Site "Chartres"]
[Date "2022.06.17"]
[Round "9.7"]
[White "Cornette, Matthieu"]
[Black "Loiseau, Quentin"]
[Result "1-0"]
[ECO "C84"]
[WhiteElo "2570"]
[BlackElo "2445"]
[Annotator "TA"]
[PlyCount "81"]
[EventDate "2022.06.16"]
[EventType "team-tourn"]
[EventCountry "FRA"]
[SourceTitle "playchess.com"]
[Source "ChessBase"]
[SourceQuality "1"]
[TimeControl "40/5400+30:1800+30"]

{[%evp 12,81,27,-2,21,17,10,3,11,3,11,12,22,12,19,18,32,25,39,27,84,54,33,39,56,50,31,43,57,52,43,52,62,39,43,43,47,47,95,79,84,81,84,79,107,107,111,108,126,43,243,247,269,247,608,597,1041,1030,1616,1558,2714,2531,29974,29975,29975,29976,29976,29976,29976,29975,5314,2415]} 1. e4 {[%emt 0:00:12] Marin,M} e5 {[%emt 0:00:05]} 2. Nf3 {[%emt 0:00:05]} Nc6 {[%emt 0:00:03]} 3. Bb5 {[%emt 0:00:30]} a6 {[%emt 0:00:07]} 4. Ba4 {[%emt 0:00:05]} Nf6 {[%emt 0:00:04]} 5. O-O {[%emt 0:00:42]} Be7 {[%emt 0:01:21]} 6. d3 {[%emt 0:00:40]} d6 {[%emt 0:01:52]} 7. c4 {[%emt 0:00:40]} O-O {[%emt 0:02:24] C84: Closed Ruy Lopez: Unusual White 6th moves.} 8. h3 {[%emt 0:00:13]} Nd7 {[%emt 0:04:16]} 9. Be3 {[%emt 0:00:24]} Bf6 {[%emt 0:04:08] The position is equal.} 10. Nc3 {[%emt 0:00:41]} Nd4 {[%emt 0:18:30]} 11. Bxd7 {[%emt 0:01:32] [#]} Nxf3+ $146 {[%emt 0:03:31]} ({Predecessor:} 11... Bxd7 12. Nd5 b5 13. c5 dxc5 14. Rc1 c6 15. Nxf6+ Qxf6 16. Rxc5 Nxf3+ 17. Qxf3 Qxf3 18. gxf3 {½-½ (42) Naiditsch,A (2700)-Ponomariov,R (2726) Dortmund 2012 CBM 150 [Marin,M]}) 12. Qxf3 {[%emt 0:00:05]} Qxd7 {[%emt 0:02:28]} 13. Rfd1 {[%emt 0:12:36]} c6 {[%emt 0:17:12]} 14. d4 {[%emt 0:02:18]} Qc7 {[%emt 0:07:50]} 15. Qg3 {[%emt 0:16:28]} Be6 {[%emt 0:16:51]} (15... b5 $11 {keeps the balance.}) 16. c5 {[%emt 0:04:52]} d5 {[%emt 0:06:12]} 17. exd5 {[%emt 0:06:08]} Bxd5 {[%emt 0:02:41]} 18. Nxd5 {[%emt 0:01:58]} cxd5 {[%emt 0:00:01]} 19. b4 {[%emt 0:00:55]} Qe7 {[%emt 0:02:26]} 20. Rac1 {[%emt 0:01:39]} e4 {[%emt 0:00:54]} 21. Bf4 {[%emt 0:01:52] Hoping for Bd6.} Rfe8 {[%emt 0:00:58]} 22. a4 {[%emt 0:00:52] White is more active.} Qd7 {[%emt 0:01:33]} 23. Qb3 {[%emt 0:06:27]} Qf5 {[%emt 0:00:01]} 24. Be3 {[%emt 0:02:03]} Bg5 {[%emt 0:03:43]} (24... Bd8 $14) 25. b5 $16 {[%emt 0:01:36]} axb5 {[%emt 0:00:30]} 26. axb5 {[%emt 0:00:27]} h6 {[%emt 0:01:35]} 27. Ra1 {[%emt 0:03:33]} Bxe3 {[%emt 0:00:25]} 28. fxe3 {[%emt 0:01:39]} Qg5 {[%emt 0:01:03]} 29. Rdc1 {[%emt 0:02:40]} Kh7 {[%emt 0:00:23]} 30. Rf1 {[%emt 0:06:53]} ({White should try} 30. Rxa8 $16 Rxa8 31. Rf1) 30... f5 $2 {[%emt 0:01:50] [#] Loses the game.} (30... Rxa1 $1 $14 31. Rxa1 Re6) 31. Rxa8 $1 $18 {[%emt 0:03:16]} Rxa8 {[%emt 0:00:02]} 32. Qxd5 {[%emt 0:03:10][%mdl 4096] Endgame KQR-KQR} Rf8 $2 {[%emt 0:00:59]} (32... Qxe3+ 33. Kh2 f4) 33. Rf4 {[%emt 0:02:02]} Qg3 {[%emt 0:00:08]} 34. Rxf5 {[%emt 0:00:14]} Qxe3+ {[%emt 0:00:32]} 35. Kh2 {[%emt 0:00:01]} Ra8 {[%emt 0:00:50]} 36. Rf7 {[%emt 0:00:29]} ({Stronger than} 36. Qxb7 Ra1 37. Qd5 Qg1+ 38. Kg3 Qe3+ 39. Kh4 Ra3 $11) 36... Re8 {[%emt 0:00:30]} 37. Qf5+ {[%emt 0:01:56]} Kh8 {[%emt 0:00:02]} 38. Rf8+ {[%emt 0:00:36]} Rxf8 {[%emt 0:00:02]} 39. Qxf8+ {[%emt 0:00:04]} Kh7 {[%emt 0:00:05]} 40. Qf5+ {[%emt 0:00:04]} Kh8 {[%emt 0:00:02]} 41. Qe5 {[%emt 0:31:03] Weighted Error Value: White=0.05 (flawless) /Black=0.71} 1-0